bitfinex/quotes_ETHUSD_20250715
["timestamp","ask_amount","ask_price","bid_price","bid_amount"]
[1752547668212,0.022612,2977.9,2977.8,15.45937691]
[1752547668509,0.022612,2977.9,2977.8,5.70658755]
[1752547669184,0.022612,2977.9,2977.8,5.74016938]
[1752547669591,0.022612,2977.9,2977.8,25.49295874]
[1752547669779,0.022612,2977.9,2977.8,25.45937691]
[1752547671417,0.041,2978.9,2978.8,3.35705653]
[1752547671717,0.041,2978.9,2978.8,0.31257042]
[1752547672310,0.041,2978.9,2978.8,3.66962695]
[1752547672511,0.041,2978.9,2978.8,0.74417042]
[1752547672722,0.041,2978.9,2978.8,0.31257042]
[1752547672876,3.86794383,2978.9,2978.8,0.31257042]
[1752547673077,4.16774383,2978.9,2978.8,0.31257042]
[1752547673314,3.35759288,2978.4,2977.8,0.82713324]
[1752547673511,3.35759288,2978.4,2977.7,10.81678979]
[1752547673713,3.35734264,2978.6,2977.7,10.81678979]
[1752547673714,0.47,2978.6,2977.7,0.4316]
[1752547673915,3.35801157,2978.0,2977.5,0.8052]
[1752547674116,3.35809418,2977.9,2977.7,0.1672]
[1752547674321,0.6372,2978.3,2977.7,0.1672]
[1752547674594,3.35799561,2978.0,2977.7,0.1672]
[1752547674789,3.99489645,2978.3,2977.7,0.1672]
[1752547675004,3.35775623,2978.2,2977.7,0.1672]
[1752547675893,3.35785172,2978.1,2977.7,0.1672]
[1752547676191,3.35777368,2978.2,2977.7,0.1672]
[1752547676828,0.47,2978.1,2977.7,0.1672]
[1752547676998,3.35818457,2977.8,2977.5,0.1672]
[1752547677407,3.35811064,2977.9,2977.5,0.1672]
[1752547677830,1.2398,2977.8,2977.2,3.35878963]
[1752547678032,4.76520036,2977.8,2977.3,0.1672]
[1752547678351,3.35831066,2977.7,2977.3,0.1672]
[1752547678839,4.76523639,2977.8,2977.3,0.1672]
[1752547679022,1.407,2977.8,2977.3,0.1672]
[1752547679361,4.76526248,2977.8,2977.3,0.1672]
[1752547679561,3.35830205,2977.7,2977.3,0.1672]
[1752547679702,3.35840945,2977.6,2977.3,0.1672]
[1752547679905,3.35863505,2977.4,2976.6,4.56739989]
[1752547680138,3.82881308,2977.3,2976.9,0.1672]
[1752547680447,3.3588626,2977.2,2976.9,0.1672]
[1752547680831,3.35898251,2977.1,2976.9,0.1672]
[1752547681035,3.35898251,2977.1,2976.5,3.35960385]
[1752547681242,3.35898251,2977.1,2976.7,0.1672]
[1752547681407,0.6372,2977.2,2976.7,0.1672]
[1752547681604,3.35860588,2977.5,2976.8,3.79083439]
[1752547681838,3.52591966,2977.4,2976.9,0.9746]
[1752547682038,0.1672,2977.4,2976.9,4.33379815]
[1752547682309,0.1672,2977.4,2976.9,4.76539815]
[1752547683202,0.1672,2977.4,2976.9,1.4062]
[1752547683400,0.1672,2977.4,2976.9,4.76539406]
[1752547683603,3.35875609,2977.3,2976.9,0.9746]
[1752547683817,0.47,2977.3,2976.9,0.1672]
[1752547684143,3.35904489,2977.1,2976.6,4.75999998]
[1752547684344,0.7882,2977.1,2976.7,0.1672]
[1752547684734,3.3591552,2977.0,2976.7,0.1672]
[1752547684933,0.47,2977.0,2976.7,0.1672]
[1752547685111,3.35937316,2976.8,2976.6,4.75999998]
[1752547685441,3.996434,2976.9,2976.4,0.1672]
[1752547685648,3.996434,2976.9,2976.5,0.31184165]
[1752547685820,3.996434,2976.9,2976.6,0.31184165]
[1752547686023,0.6372,2976.9,2976.7,0.31184165]
[1752547686343,0.1672,2976.9,2976.8,0.31184165]
[1752547688369,3.52639916,2976.9,2976.8,0.31184165]
[1752547689021,4.76375904,2976.9,2976.8,0.31184165]
[1752547690073,5.54755904,2976.9,2976.8,0.31184165]
[1752547690413,5.57755904,2976.9,2976.8,0.31184165]
[1752547690750,4.81019916,2976.9,2976.8,0.31184165]
[1752547691052,7.5812,2976.9,2976.8,0.31184165]
[1752547691250,7.5812,2976.9,2976.8,0.31253948]
[1752547691657,0.5,2976.9,2976.8,0.31253948]
[1752547691968,7.0682,2977.3,2976.8,4.28339555]
[1752547692251,6.901,2977.3,2977.0,0.752]
[1752547692438,7.0682,2977.8,2977.2,0.1672]
[1752547692659,6.901,2977.8,2977.5,3.35845329]
[1752547692814,6.901,2977.8,2977.6,0.47973948]
[1752547693018,6.901,2977.8,2977.7,0.31253948]
[1752547693224,0.001,2977.9,2977.7,0.31253948]
[1752547693430,6.898,2977.9,2977.8,0.31253948]
[1752547694146,0.001,2977.9,2977.8,0.31253948]
[1752547694316,6.888,2977.9,2977.8,0.31253948]
[1752547694517,0.001,2977.9,2977.8,0.31253948]
[1752547694716,6.888,2977.9,2977.8,0.31253948]
[1752547695256,0.001,2977.9,2977.8,0.31253948]
[1752547695658,0.001,2977.9,2977.8,3.83792337]
[1752547695955,0.001,2977.9,2977.8,5.11894526]
[1752547696666,0.1672,2978.6,2977.8,13.11126137]
[1752547696961,0.041,2978.9,2978.5,0.8005]
[1752547697175,3.39798678,2978.9,2978.6,0.31253948]
[1752547697342,3.39798678,2978.9,2978.7,0.31253948]
[1752547697684,3.39798678,2978.9,2978.8,0.31253948]
[1752547700053,3.35712653,2978.8,2978.5,0.1672]
[1752547700247,3.35716923,2978.7,2978.6,0.312574]
[1752547700554,10.20516923,2978.7,2978.6,0.312574]
[1752547700750,6.848,2978.7,2978.6,0.312574]
[1752547700953,0.041,2978.9,2978.6,4.11422397]
[1752547701268,0.041,2978.9,2978.7,1.20196809]
[1752547701467,3.39794383,2978.9,2978.8,0.312574]
[1752547701949,0.041,2978.9,2978.8,0.312574]
[1752547703157,3.3572283,2978.7,2978.2,0.8005]
[1752547703470,3.3572283,2978.7,2978.5,3.35738734]
[1752547703471,6.854,2978.7,2978.5,3.35738734]
[1752547703792,11.02646923,2978.7,2978.6,0.31256002]
[1752547704088,11.46796923,2978.7,2978.6,0.31256002]
[1752547705695,0.8223,2978.6,2977.5,0.03358522]
[1752547705854,6.879,2978.5,2977.8,0.4444]
[1752547706058,3.3576509,2978.3,2977.8,3.35816645]
[1752547706380,3.35711469,2978.8,2978.0,3.35792357]
[1752547706582,3.3571929,2978.7,2978.1,3.80217233]
[1752547706889,6.918,2978.7,2978.3,3.35755923]
[1752547707069,6.918,2978.7,2978.3,4.12635923]
[1752547707391,0.7946,2978.9,2978.5,3.3573714]
[1752547707596,6.917,2978.8,2978.5,3.3573714]
[1752547707891,0.041,2978.9,2978.6,0.4444]
[1752547707892,6.946,2978.9,2978.6,0.4444]
[1752547708095,6.946,2978.9,2978.8,3.35705653]
[1752547708281,6.946,2978.9,2978.8,3.80145653]
[1752547708792,6.946,2978.9,2978.6,3.35723192]
[1752547708990,6.946,2978.9,2978.6,3.80163192]
[1752547709191,6.946,2978.9,2978.5,4.75999998]
[1752547709192,7.6407,2978.9,2978.5,4.75999998]
[1752547709392,3.35728194,2978.6,2978.5,4.75999998]
[1752547710506,10.68578194,2978.6,2978.5,4.75999998]
[1752547711789,10.68578194,2978.6,2977.9,1.2152]
[1752547711790,3.3575272,2978.4,2977.9,1.2152]
[1752547712105,3.35751054,2978.4,2978.0,0.4444]
[1752547712264,3.35746331,2978.5,2978.0,0.4444]
[1752547712461,3.35746331,2978.5,2978.0,3.80234784]
[1752547712806,6.887,2978.6,2978.2,3.35766468]
[1752547712963,6.887,2978.6,2978.2,0.4444]
[1752547713163,6.887,2978.6,2978.3,0.4444]
[1752547713474,6.865,2978.5,2978.4,0.4444]
[1752547713790,6.905,2978.9,2978.5,4.33143673]
[1752547713995,6.905,2978.9,2978.6,0.4444]
[1752547714178,7.5956,2978.9,2978.5,0.1672]
[1752547714494,3.35712171,2978.8,2978.5,0.1672]
[1752547715072,3.35719054,2978.7,2978.5,0.1672]
[1752547715276,6.86,2978.6,2978.5,0.1672]
[1752547715477,0.041,2978.9,2978.6,0.4444]
[1752547715663,6.86,2978.8,2978.6,0.4444]
[1752547715862,6.86,2978.8,2978.7,0.1672]
[1752547717195,0.041,2978.9,2978.7,0.6116]
[1752547717381,0.041,2978.9,2978.8,3.35705653]
[1752547717586,0.041,2978.9,2978.8,3.80145653]
[1752547718264,0.041,2978.9,2978.8,3.35705653]
[1752547718786,0.041,2978.9,2978.8,3.80145653]
[1752547719171,0.041,2978.9,2978.8,0.4444]
[1752547719360,0.041,2978.9,2978.8,3.80145653]
[1752547719562,0.041,2978.9,2978.8,0.4444]
[1752547719766,0.041,2978.9,2978.7,3.52431408]
[1752547719968,0.041,2978.9,2978.7,3.96871408]
[1752547720468,0.041,2978.9,2978.7,0.6116]
[1752547721387,0.041,2978.9,2978.7,0.1672]
[1752547721388,3.35705653,2978.8,2978.7,0.1672]
[1752547721700,3.35721666,2978.7,2978.5,0.1672]
[1752547722205,3.35728194,2978.6,2978.5,0.1672]
[1752547722370,3.35722851,2978.7,2978.5,0.1672]
[1752547722765,3.35728194,2978.6,2978.5,0.1672]
[1752547724302,3.35722842,2978.7,2978.5,0.1672]
[1752547724674,6.812,2978.8,2978.5,0.1672]
[1752547724883,6.812,2978.8,2978.6,0.4667]
[1752547725077,0.041,2978.9,2978.8,0.7646]
[1752547725400,0.041,2978.9,2978.8,4.75555653]
[1752547725587,0.041,2978.9,2978.8,1.3985]
[1752547725793,0.041,2978.9,2978.8,4.75555653]
[1752547726667,0.041,2978.9,2978.8,1.3985]
[1752547727085,0.041,2978.9,2978.8,0.6339]
[1752547728486,0.041,2978.9,2978.8,0.1672]
[1752547728891,3.39794383,2978.9,2978.8,0.1672]
[1752547729093,3.39794383,2978.9,2978.7,0.1672]
[1752547729466,3.35705653,2978.8,2978.7,0.1672]
[1752547729902,3.35705653,2978.8,2978.3,0.4667]
[1752547729903,3.35724378,2978.7,2978.3,0.4667]
[1752547730100,3.35709527,2978.8,2978.4,0.1672]
[1752547730404,3.35716923,2978.7,2978.4,0.1672]
[1752547730584,3.3572977,2978.6,2978.4,0.1672]
[1752547730785,3.35739466,2978.5,2978.4,0.1672]
[1752547730982,3.35734599,2978.6,2978.4,0.1672]
[1752547731187,3.35724093,2978.7,2978.4,0.1672]
[1752547731387,3.35726699,2978.7,2978.4,0.1672]
[1752547731588,3.35730644,2978.6,2978.4,0.1672]
[1752547731906,3.35739466,2978.5,2978.4,0.1672]
[1752547732485,3.35716923,2978.7,2978.4,0.1672]
[1752547732690,3.35729315,2978.6,2978.4,0.1672]
[1752547732883,3.35739466,2978.5,2978.4,0.1672]
[1752547733082,3.35728163,2978.7,2978.4,0.1672]
[1752547733433,3.35730579,2978.6,2978.4,0.1672]
[1752547733611,3.35739466,2978.5,2978.4,0.1672]
[1752547733813,3.3575727,2978.4,2978.0,4.75999998]
[1752547734016,7.6442,2978.6,2978.1,0.6339]
[1752547734198,7.477,2978.6,2978.1,0.4667]
[1752547734404,10.83435142,2978.6,2978.1,0.4667]
[1752547735436,3.35749315,2978.5,2978.1,0.4667]
[1752547735590,10.83430598,2978.6,2978.1,3.82449221]
[1752547735786,3.35740405,2978.5,2978.1,0.4667]
[1752547735985,3.35739466,2978.5,2978.1,0.4667]
[1752547736513,0.4433,2978.4,2978.0,4.75999998]
[1752547736711,3.3578456,2978.1,2978.0,4.75999998]
[1752547737038,4.11845836,2978.0,2977.9,0.002]
[1752547737238,11.26075836,2978.0,2977.9,0.002]
[1752547737925,3.35919916,2976.9,2976.8,4.75999998]
[1752547738090,3.35911894,2977.0,2976.5,8.1196385]
[1752547738440,3.35915684,2977.0,2976.5,10.0]
[1752547738816,3.35915684,2977.0,2976.4,8.58644652]
[1752547739329,3.35911014,2977.0,2976.4,0.4667]
[1752547739528,3.35911014,2977.0,2976.3,4.16726103]
[1752547739529,0.4433,2977.0,2976.3,4.16726103]
[1752547739733,3.3592024,2976.9,2976.4,3.35968]
[1752547739898,6.694,2976.8,2976.4,10.0]
[1752547740296,0.7532,2977.7,2976.9,0.7737]
[1752547740502,3.35861432,2977.5,2976.9,4.59954657]
[1752547740740,6.688,2977.6,2977.2,3.35874893]
[1752547740905,6.693,2977.5,2977.2,3.82544893]
[1752547741306,6.693,2977.5,2977.2,0.4667]
[1752547741506,6.693,2977.5,2977.2,3.82553201]
[1752547741702,0.7729,2978.1,2977.3,0.4667]
[1752547741904,4.13057798,2978.3,2977.7,3.35827261]
[1752547742237,3.35804311,2978.0,2977.4,0.8074]
[1752547742552,3.35804311,2978.0,2977.4,2.08021]
[1752547742779,0.4433,2978.1,2977.4,2.08021]
[1752547743063,0.4433,2978.1,2977.2,6.03409998]
[1752547743366,3.35823276,2977.8,2977.2,8.92618047]
[1752547743564,6.698,2977.7,2977.2,5.56739998]
[1752547743871,6.698,2977.7,2977.2,4.16625457]
[1752547744029,3.35841292,2977.6,2977.2,1.55993281]
[1752547744232,3.35841292,2977.6,2977.2,0.91973281]
[1752547744418,10.88644972,2977.7,2977.2,0.91973281]
[1752547744620,10.88644972,2977.7,2977.2,4.27859022]
[1752547744816,3.35842039,2977.6,2977.2,0.91973281]
[1752547745015,7.5281,2977.7,2977.2,0.91973281]
[1752547745233,10.88646118,2977.7,2977.2,0.1672]
[1752547745446,6.698,2977.7,2977.4,3.35856684]
[1752547745629,0.1672,2977.8,2977.5,0.4667]
[1752547745828,6.681,2978.0,2977.6,0.6339]
[1752547746033,6.681,2978.0,2977.6,1.3846]
[1752547746234,0.1672,2978.1,2977.8,3.35812236]
[1752547746432,6.8512,2978.1,2977.8,3.82482236]
[1752547746848,6.8512,2978.1,2977.8,3.82483577]
[1752547747231,6.8512,2978.1,2977.7,3.35823559]
[1752547747432,6.8512,2978.1,2977.7,3.82493559]
[1752547747755,6.8512,2978.1,2977.7,0.4667]
[1752547748348,6.8512,2978.1,2977.6,0.9179]
[1752547748349,0.803,2977.9,2977.6,0.1672]
[1752547748518,0.803,2977.9,2977.5,4.75999998]
[1752547748717,6.8452,2977.8,2977.5,4.75999998]
[1752547749343,6.678,2977.8,2977.5,8.11848022]
[1752547749652,6.678,2977.8,2977.5,5.22669998]
[1752547749841,6.678,2977.8,2977.6,3.35840945]
[1752547750042,6.678,2977.8,2977.5,5.76608998]
[1752547750247,6.678,2977.8,2977.4,3.52578072]
[1752547750550,6.678,2977.8,2977.4,3.3586305]
[1752547750551,7.1213,2977.8,2977.4,3.3586305]
[1752547750745,7.1213,2977.8,2977.2,4.75999998]
[1752547750746,0.9248,2977.7,2977.2,4.92719998]
[1752547751057,3.35870807,2977.4,2977.2,0.1672]
[1752547751261,10.03257821,2977.5,2977.2,0.1672]
[1752547751834,3.35863755,2977.4,2977.2,0.1672]
[1752547752219,10.03256006,2977.5,2977.2,0.1672]
[1752547752419,3.35864544,2977.4,2977.2,0.1672]
[1752547752678,3.35874785,2977.3,2977.2,0.1672]
[1752547752829,3.35874785,2977.3,2976.8,8.28648563]
[1752547752830,3.3588081,2977.3,2976.8,8.28648563]
[1752547753026,6.674,2977.5,2976.9,3.79596685]
[1752547753229,6.674,2977.5,2977.1,0.1672]
[1752547753424,0.7576,2977.7,2977.2,3.35883224]
[1752547753640,6.661,2977.6,2977.4,0.1672]
[1752547754265,4.61012225,2977.5,2977.0,0.1672]
[1752547754465,6.664,2977.5,2977.1,3.79576696]
[1752547754640,6.664,2977.5,2976.9,0.002]
[1752547754641,6.664,2977.5,2977.4,0.1672]
[1752547755037,6.664,2977.5,2977.4,3.52583505]
[1752547755363,6.664,2977.5,2977.4,0.1672]
[1752547755564,6.664,2977.5,2977.4,3.52583505]
[1752547755962,6.664,2977.5,2977.4,0.1672]
[1752547757951,6.664,2977.5,2977.0,4.75999998]
[1752547758155,3.35897349,2977.1,2977.0,4.92719998]
[1752547758482,3.35897349,2977.1,2976.9,0.002]
[1752547758483,3.35908632,2977.0,2976.9,0.002]
[1752547758644,4.62018632,2977.0,2976.9,0.002]
[1752547760141,4.18278632,2977.0,2976.9,0.002]
[1752547760542,6.635,2977.0,2976.9,0.002]
[1752547760745,9.99408632,2977.0,2976.9,0.002]
[1752547760996,10.16128632,2977.0,2976.9,0.002]
[1752547761166,10.59868632,2977.0,2976.9,0.002]
[1752547761367,11.30918179,2977.0,2976.9,0.002]
[1752547761667,12.12768179,2977.0,2976.9,0.002]
[1752547763275,22.12768179,2977.0,2976.9,0.002]
[1752547764167,22.11176811,2977.0,2976.9,0.002]
[1752547764365,22.66176811,2977.0,2976.9,0.002]
[1752547765396,7.60178632,2977.0,2976.9,0.002]
[1752547765696,10.96087264,2977.0,2976.9,0.002]
[1752547765865,21.39827264,2977.0,2976.9,0.002]
[1752547766679,21.94827264,2977.0,2976.9,0.002]
[1752547771494,21.39827264,2977.0,2976.9,0.002]
[1752547771707,20.96087264,2977.0,2976.9,0.002]
[1752547772285,21.39827264,2977.0,2976.9,0.002]
[1752547773365,21.94827264,2977.0,2976.9,0.002]
[1752547776288,21.90827264,2977.0,2976.9,0.002]
[1752547776455,21.35827264,2977.0,2976.9,0.002]
[1752547776890,20.92087264,2977.0,2976.9,0.002]
[1752547777298,21.90827264,2977.0,2976.9,0.002]
[1752547779284,3.35931201,2976.8,2976.7,0.002]
[1752547779490,9.91831201,2976.8,2976.7,0.002]
[1752547779702,10.35571201,2976.8,2976.7,0.002]
[1752547783017,20.90571201,2976.8,2976.7,0.002]
[1752547783315,21.73401201,2976.8,2976.7,0.002]
[1752547784713,14.18761201,2976.8,2976.7,0.002]
[1752547784915,20.71561201,2976.8,2976.7,0.002]
[1752547785614,19.88731201,2976.8,2976.7,0.002]
[1752547785818,3.35826192,2977.8,2976.7,0.4546]
[1752547785819,0.82,2977.1,2976.7,0.4546]
[1752547786045,0.1672,2976.8,2976.7,0.4546]
[1752547786208,6.6802,2976.8,2976.7,0.4546]
[1752547787939,6.6802,2976.8,2976.7,0.8360246]
[1752547788240,0.1672,2976.8,2976.7,0.8360246]
[1752547788445,0.001,2977.5,2976.7,1.6265246]
[1752547788736,0.1672,2977.3,2976.8,0.4526]
[1752547789045,6.493,2977.2,2976.8,0.4526]
[1752547789242,6.493,2977.2,2976.9,0.4526]
[1752547789740,3.35897349,2977.1,2976.9,0.4526]
[1752547789944,9.84608632,2977.0,2976.9,0.4526]
[1752547790347,6.487,2977.0,2976.9,0.4526]
[1752547790938,3.35926874,2976.9,2976.7,0.7925]
[1752547791114,9.83231201,2976.8,2976.7,0.002]
[1752547796119,11.07221201,2976.8,2976.7,0.002]
[1752547796347,10.62621201,2976.8,2976.7,0.002]
[1752547796942,11.07221201,2976.8,2976.7,0.002]
[1752547797461,10.49267614,2976.8,2976.7,0.002]
[1752547799819,4.01967614,2976.8,2976.7,0.002]
[1752547800048,9.78731201,2976.8,2976.7,0.002]
[1752547802587,10.23331201,2976.8,2976.7,0.002]
[1752547803367,9.78731201,2976.8,2976.7,0.002]
[1752547804191,3.35931201,2976.8,2976.7,0.002]
[1752547804392,9.75131201,2976.8,2976.7,0.4546]
[1752547804794,9.75131201,2976.8,2976.7,0.002]
[1752547805788,11.00821201,2976.8,2976.7,0.002]
[1752547805991,11.00821201,2976.8,2976.7,0.31644659]
[1752547808496,3.90942486,2976.7,2976.6,0.002]
[1752547808702,4.11147635,2976.3,2976.2,0.002]
[1752547808854,11.22860127,2976.3,2976.2,0.002]
[1752547809189,9.72987635,2976.3,2976.2,0.002]
[1752547809893,10.94987635,2976.3,2976.2,0.002]
[1752547810989,11.49987635,2976.3,2976.2,0.002]
[1752547811192,21.49987635,2976.3,2976.2,0.002]
[1752547811356,4.07718924,2976.2,2976.1,1e-08]
[1752547811558,5.30618924,2976.2,2976.1,1e-08]
[1752547812489,15.30618924,2976.2,2976.1,1e-08]
[1752547812757,14.74206675,2975.6,2975.5,0.002]
[1752547813078,21.09106675,2975.6,2975.5,0.002]
[1752547813256,21.52236675,2975.6,2975.5,0.002]
[1752547814958,21.52236675,2975.6,2975.5,1e-08]
[1752547818977,31.25685573,2975.6,2975.5,1e-08]
[1752547819186,21.52236675,2975.6,2975.5,1e-08]
[1752547819611,31.25685573,2975.6,2975.5,1e-08]
[1752547820582,31.25685573,2975.6,2974.2,0.4725]
[1752547820583,4.68551858,2975.2,2974.2,0.4725]
[1752547820785,3.36213562,2974.3,2974.2,0.4725]
[1752547820986,9.72213562,2974.3,2974.2,0.7853445]
[1752547821370,6.36,2974.3,2974.2,0.7853445]
[1752547822285,9.72213562,2974.3,2974.2,0.7853445]
[1752547822608,6.356,2974.3,2974.2,0.7853445]
[1752547822766,0.168,2974.4,2974.3,3.36213562]
[1752547823104,0.168,2975.0,2974.5,3.36181754]
[1752547823269,6.369,2974.9,2974.6,4.46307802]
[1752547823472,0.168,2975.0,2974.7,0.78520373]
[1752547823778,0.168,2975.0,2974.9,0.7886]
[1752547823978,6.364,2975.0,2974.9,0.78520373]
[1752547824167,3.36120179,2975.2,2974.9,0.78520373]
[1752547824368,9.72523155,2975.1,2975.0,0.78520373]
[1752547824981,9.72523155,2975.1,2975.0,0.31270373]
[1752547826525,20.70653155,2975.1,2975.0,0.31270373]
[1752547826880,3.36202259,2974.4,2974.3,1.2611]
[1752547827076,9.71102259,2974.4,2974.3,1.2611]
[1752547828079,3.53013562,2974.3,2974.1,0.4725]
[1752547828417,6.345,2974.2,2974.1,0.4725]
[1752547828722,9.70724867,2974.2,2974.1,0.4725]
[1752547829409,9.70724867,2974.2,2973.9,0.7886]
[1752547829410,3.36247478,2974.0,2973.9,0.7886]
[1752547829720,9.68847478,2974.0,2973.9,1.2611]
[1752547829926,9.68847478,2974.0,2973.9,0.4725]
[1752547830419,3.53064066,2973.9,2973.7,0.7988]
[1752547830613,6.317,2973.8,2973.7,0.7988]
[1752547831140,9.67970092,2973.8,2973.7,0.7988]
[1752547831420,9.67970092,2973.8,2973.7,1.2713]
[1752547831917,0.168,2973.7,2973.4,0.7628]
[1752547832324,3.36304018,2973.5,2973.4,0.7628]
[1752547832540,0.168,2973.5,2973.4,1.2353]
[1752547832841,6.475,2973.5,2973.4,4.59845329]
[1752547833027,6.307,2973.5,2973.4,4.59845329]
[1752547833541,6.307,2973.5,2973.4,1.2353]
[1752547833902,6.307,2973.5,2973.4,4.59845329]
[1752547834438,0.168,2973.7,2973.4,4.59840905]
[1752547834639,6.3,2973.6,2973.5,3.36304018]
[1752547834841,6.297,2973.8,2973.7,3.36281201]
[1752547835025,6.297,2973.8,2973.7,1.2535]
[1752547837644,8.066,2974.7,2973.8,0.7501]
[1752547837801,6.453,2974.6,2974.3,4.14719176]
[1752547838005,6.286,2974.6,2974.4,3.8345222]
[1752547838219,6.286,2974.6,2974.5,0.4725]
[1752547838803,0.168,2974.7,2974.6,0.7851]
[1752547839005,0.168,2975.4,2974.8,0.7851]
[1752547839248,6.289,2975.4,2975.2,3.36106102]
[1752547839410,6.289,2975.4,2975.3,0.7851]
[1752547839748,6.289,2975.4,2975.3,1.2576]
[1752547839947,6.285,2975.5,2975.3,1.2576]
[1752547840117,6.285,2975.5,2975.4,0.4725]
[1752547841454,0.168,2975.6,2975.4,0.4725]
[1752547841743,6.285,2975.5,2975.3,4.31604693]
[1752547842333,0.001,2975.6,2975.5,4.1681797]
[1752547842537,0.001,2975.6,2975.5,4.20178749]
[1752547842852,0.001,2975.6,2975.5,4.80588749]
[1752547843250,0.001,2975.6,2975.5,1.44510779]
[1752547843440,0.001,2975.6,2975.5,4.80588749]
[1752547843649,0.001,2975.6,2975.5,5.69952642]
[1752547847573,0.001,2975.6,2975.5,15.66591863]
[1752547852364,0.001,2975.6,2975.5,5.66591863]
[1752547852929,0.001,2975.6,2975.5,2.30513893]
[1752547853269,0.001,2975.6,2975.5,5.66591863]
[1752547853839,0.001,2975.6,2975.5,1.06163893]
[1752547854044,0.001,2975.6,2975.5,3.9648797]
[1752547854858,0.001,2975.6,2975.5,0.168]
[1752547855270,0.001,2975.6,2975.5,0.6041]
[1752547855478,0.001,2975.6,2975.5,3.9648797]
[1752547855772,0.001,2975.6,2975.3,4.12344695]
[1752547856077,0.001,2975.6,2975.3,0.002]
[1752547856253,3.52887538,2975.5,2975.3,0.002]
[1752547856667,3.36089265,2975.4,2975.3,0.002]
[1752547857164,0.5977,2975.5,2975.3,0.002]
[1752547857481,0.168,2975.5,2975.3,0.002]
[1752547857643,0.001,2975.6,2975.3,0.4381]
[1752547858247,0.001,2975.6,2975.4,0.4361]
[1752547858440,0.001,2975.6,2975.4,3.79692386]
[1752547858647,0.001,2975.6,2975.3,0.7599]
[1752547858846,0.001,2975.6,2975.4,0.4361]
[1752547859269,0.001,2975.6,2975.5,0.4361]
[1752547861047,0.001,2975.6,2975.5,4.26936046]
[1752547861271,0.001,2975.6,2975.5,5.27836825]
[1752547861842,0.001,2975.6,2975.5,1.88398076]
[1752547862042,0.001,2975.6,2975.5,1.4115]
[1752547862242,0.001,2975.6,2975.5,4.7722797]
[1752547862493,0.001,2975.6,2975.5,1.4115]
[1752547862777,0.001,2975.6,2975.5,3.9648797]
[1752547862983,0.001,2975.6,2975.5,0.6041]
[1752547863176,0.001,2975.6,2975.5,3.9648797]
[1752547863364,0.001,2975.6,2975.5,0.6041]
[1752547866090,0.001,2975.6,2975.5,3.9648797]
[1752547866287,0.001,2975.6,2975.5,4.43927767]
[1752547866845,0.001,2975.6,2975.5,4.47288546]
[1752547867286,0.001,2975.6,2975.5,5.24038546]
[1752547868196,0.001,2975.6,2975.5,5.20677767]
[1752547870179,0.001,2975.6,2975.5,5.24038546]
[1752547870378,0.001,2975.6,2975.5,15.24038546]
[1752547870591,0.001,2975.6,2975.5,21.38377767]
[1752547871863,0.001,2975.6,2975.5,15.20677767]
[1752547872065,0.001,2975.6,2975.5,21.38577767]
[1752547872888,0.001,2975.6,2975.5,15.20677767]
[1752547873187,0.001,2975.6,2975.5,21.38577767]
[1752547875133,0.001,2976.8,2976.5,3.35965059]
[1752547875272,0.1682,2976.8,2976.6,4.15799645]
[1752547875605,0.001,2976.8,2976.7,3.35942486]
[1752547875805,0.001,2976.8,2976.7,3.8555191]
[1752547876166,0.001,2976.8,2976.7,3.82192486]
[1752547876366,0.001,2976.8,2976.6,0.1672]
[1752547876826,3.36037508,2976.8,2976.6,0.1672]
[1752547877118,1.39171379,2976.8,2976.5,4.76]
[1752547877469,3.3594303,2976.7,2976.5,4.76]
[1752547877914,0.4688,2976.6,2976.1,3.36000547]
[1752547878087,3.35976347,2976.4,2976.0,0.168]
[1752547878286,0.1672,2976.3,2975.8,3.52837727]
[1752547878491,0.1672,2976.3,2975.8,0.6305]
[1752547878681,0.4688,2976.2,2975.6,3.36061655]
[1752547878880,0.168,2976.1,2975.7,10.0]
[1752547879192,3.36043451,2975.9,2975.5,0.168]
[1752547879392,4.18122093,2976.0,2975.5,0.168]
[1752547879691,0.4688,2975.9,2975.5,0.168]
[1752547879906,3.36055477,2975.7,2975.4,6.346]
[1752547880105,0.6368,2975.9,2975.4,6.346]
[1752547880308,0.168,2975.9,2975.5,3.36075373]
[1752547880489,0.168,2975.9,2975.6,3.3605946]
[1752547880820,0.168,2976.1,2975.7,3.36055381]
[1752547881324,0.168,2976.1,2975.8,0.4625]
[1752547881490,0.168,2976.1,2975.6,3.52860929]
[1752547881684,3.5281289,2976.1,2975.6,0.168]
[1752547881886,3.9969289,2976.1,2975.6,0.168]
[1752547882298,3.9969289,2976.1,2975.6,3.52865119]
[1752547882725,3.9969289,2976.1,2975.6,0.168]
[1752547883022,0.6368,2976.1,2975.6,3.52865393]
[1752547884282,0.168,2976.1,2975.6,3.52865393]
[1752547884576,0.168,2976.1,2975.6,1.22972414]
[1752547885035,0.168,2976.1,2975.7,3.36053399]
[1752547885193,0.168,2976.1,2975.8,0.4625]
[1752547885394,0.001,2976.1,2976.0,3.36012751]
[1752547885628,0.001,2976.1,2976.0,15.15493204]
[1752547887429,0.001,2976.1,2976.0,21.29393204]
[1752547887994,0.001,2976.1,2976.0,11.55944306]
[1752547892564,0.001,2976.1,2976.0,11.06594306]
[1752547893048,0.001,2976.1,2976.0,9.62812751]
[1752547893351,0.001,2976.1,2976.0,3.36012751]
[1752547893525,0.001,2976.1,2976.0,3.82262751]
[1752547893725,0.001,2976.1,2976.0,3.99062751]
[1752547894726,0.001,2976.1,2976.0,13.72511649]
[1752547894941,0.001,2976.1,2976.0,17.29056046]
[1752547897254,0.001,2976.1,2976.0,13.63607148]